bitfinex-derivatives/quotes_ETHF0:USTF0_20250430
["timestamp","ask_amount","ask_price","bid_price","bid_amount"]
[1746028067773,5.05506,1766.6,1766.5,3.828]
[1746028068174,6.69876,1766.6,1766.5,3.828]
[1746028070179,1.13218,1766.4,1766.3,5.13972]
[1746028070483,1.13218,1766.4,1766.3,4.0075]
[1746028071086,1.13218,1766.4,1766.3,7.8355]
[1746028071384,2.84776,1766.5,1766.3,8.96774]
[1746028071577,1.13218,1766.4,1766.3,10.56894]
[1746028071782,2.84778,1766.4,1766.3,9.4367]
[1746028072484,2.84778,1766.4,1766.3,10.56895]
[1746028072875,1.7156,1766.4,1766.3,10.56895]
[1746028073078,1.13215,1766.5,1766.4,1.13218]
[1746028073274,2.84775,1766.5,1766.4,2.73338]
[1746028073485,3.923,1766.5,1766.4,2.73338]
[1746028074081,3.923,1766.5,1766.4,6.56138]
[1746028074680,3.923,1766.5,1766.4,5.4292]
[1746028074988,3.923,1766.5,1766.4,6.56138]
[1746028077487,5.05512,1766.5,1766.4,6.56138]
[1746028077690,3.923,1766.5,1766.4,6.56138]
[1746028078787,1.13212,1766.6,1766.5,1.13212]
[1746028078977,1.13212,1766.6,1766.5,2.89192]
[1746028079187,5.6027,1766.7,1766.6,1.13206]
[1746028079486,6.73469,1766.7,1766.6,3.69526]
[1746028079682,5.6027,1766.7,1766.6,3.69526]
[1746028079981,4.33969,1766.9,1766.8,1.13193]
[1746028080177,3.923,1766.9,1766.8,1.13193]
[1746028080379,1.13193,1766.8,1766.7,6.98175]
[1746028080583,1.13199,1766.7,1766.6,0.8062]
[1746028081087,1.13199,1766.7,1766.6,1.93826]
[1746028081885,1.13199,1766.7,1766.5,3.828]
[1746028081886,1.13206,1766.6,1766.5,3.828]
[1746028082083,6.77336,1766.6,1766.5,4.96012]
[1746028082284,6.77336,1766.6,1766.5,3.828]
[1746028082784,6.77336,1766.6,1766.5,4.96012]
[1746028084188,6.77336,1766.6,1766.5,3.828]
[1746028085890,6.77336,1766.6,1766.5,4.96012]
[1746028086090,6.77336,1766.6,1766.5,3.828]
[1746028088187,1.13218,1766.4,1766.3,4.34005]
[1746028088391,1.13225,1766.3,1766.2,1.99159]
[1746028088688,1.13238,1766.1,1766.0,1.13239]
[1746028089082,1.13238,1766.1,1766.0,3.828]
[1746028089994,4.34018,1766.1,1766.0,3.828]
[1746028090190,5.14158,1766.1,1766.0,3.828]
[1746028090791,5.14158,1766.1,1765.3,3.2078]
[1746028090792,2.83126,1766.0,1765.3,3.2078]
[1746028090993,1.13281,1765.5,1765.3,4.9763]
[1746028091194,5.04783,1765.4,1765.3,8.8043]
[1746028092389,5.04783,1765.4,1765.3,7.0358]
[1746028093096,5.04783,1765.4,1765.3,3.828]
[1746028093593,13.25563,1765.4,1765.3,3.828]
[1746028093986,5.04783,1765.4,1765.3,3.828]
[1746028094690,6.74023,1765.4,1765.3,3.828]
[1746028094897,2.82523,1765.4,1765.3,3.828]
[1746028095089,3.916,1765.4,1765.3,4.96089]
[1746028095291,3.916,1766.2,1765.4,2.83206]
[1746028095598,3.916,1766.2,1766.1,4.34018]
[1746028095990,1.13215,1766.5,1766.3,1.13222]
[1746028096189,3.916,1766.4,1766.3,4.96022]
[1746028096385,3.916,1766.4,1766.3,3.8272]
[1746028096591,3.916,1766.4,1766.3,8.16725]
[1746028097397,1.6924,1766.7,1766.3,7.035]
[1746028097586,5.04806,1766.6,1766.4,1.13214]
[1746028097792,3.916,1766.6,1766.5,1.13212]
[1746028098194,69.905,1766.9,1766.5,7.0358]
[1746028098497,3.916,1766.8,1766.6,1.96359]
[1746028098694,3.916,1766.8,1766.7,4.33979]
[1746028099095,3.916,1766.8,1766.7,8.16779]
[1746028099297,5.04793,1766.8,1766.7,3.828]
[1746028099696,6.77493,1766.8,1766.7,3.828]
[1746028100201,2.83006,1766.7,1766.2,4.0906]
[1746028100395,1.13225,1766.3,1766.2,3.2078]
[1746028100591,5.04825,1766.3,1766.2,3.2078]
[1746028101299,5.04825,1766.3,1766.2,3.828]
[1746028103818,10.04825,1766.3,1766.2,3.828]
[1746028104209,9.95452,1766.3,1765.8,4.0906]
[1746028104415,1.13251,1765.9,1765.8,0.8828]
[1746028104611,5.04851,1765.9,1765.7,1.1326]
[1746028105009,1.1326,1765.8,1765.6,1.13267]
[1746028105211,2.8214,1765.8,1765.7,3.828]
[1746028105409,1.6888,1765.8,1765.7,4.96063]
[1746028105610,3.916,1765.9,1765.8,1.13257]
[1746028105813,3.916,1765.9,1765.8,4.34037]
[1746028106215,3.916,1765.9,1765.8,8.16837]
[1746028106411,5.04851,1765.9,1765.8,7.0358]
[1746028106611,5.04851,1765.9,1765.8,3.828]
[1746028107212,10.04851,1765.9,1765.8,3.828]
[1746028107812,11.73241,1765.9,1765.8,3.828]
[1746028108317,6.73241,1765.9,1765.8,3.828]
[1746028108620,5.04851,1765.9,1765.8,4.96057]
[1746028108813,5.04851,1765.9,1765.8,3.828]
[1746028109315,1.1324,1766.1,1766.0,1.13242]
[1746028109618,1.13244,1766.0,1765.9,1.13248]
[1746028109807,3.916,1766.1,1765.9,1.13248]
[1746028110119,3.916,1766.1,1766.0,4.34024]
[1746028110323,3.916,1766.1,1766.0,6.92234]
[1746028111113,3.916,1766.1,1766.0,10.75034]
[1746028112508,5.04838,1766.1,1766.0,10.75034]
[1746028113223,3.916,1766.1,1766.0,10.75034]
[1746028113716,1.13202,1766.7,1766.6,1.13199]
[1746028113919,1.13206,1766.6,1766.5,4.33986]
[1746028114117,5.04805,1766.7,1766.6,1.13206]
[1746028114317,3.916,1766.7,1766.6,1.93736]
[1746028114512,3.916,1766.7,1766.6,3.66836]
[1746028114817,3.91,1766.9,1766.8,1.13193]
[1746028115016,3.91,1766.9,1766.8,4.33973]
[1746028115222,5.04186,1766.9,1766.8,9.89873]
[1746028115518,3.91,1766.9,1766.8,9.89873]
[1746028115823,11.22421075,1767.2,1766.8,8.7668]
[1746028116121,3.91,1767.1,1767.0,4.3396]
[1746028116320,15.13421075,1767.2,1767.1,1.13174]
[1746028116624,3.91,1767.2,1767.1,1.13174]
[1746028116816,3.91,1767.2,1767.1,6.13174]
[1746028117021,3.91,1767.5,1767.2,2.82908]
[1746028117216,3.91,1767.5,1767.4,1.13154]
[1746028117412,3.91,1767.5,1767.3,3.2078]
[1746028117714,1.13154,1767.4,1767.3,4.33939]
[1746028117914,5.04152,1767.5,1767.4,1.13154]
[1746028118115,1.13154,1767.4,1767.3,4.33939]
[1746028118519,5.04151,1767.5,1767.4,1.13154]
[1746028118926,1.13154,1767.4,1767.3,4.33939]
[1746028119117,1.13154,1767.4,1767.3,7.0358]
[1746028119422,2.86304,1767.4,1767.3,7.0358]
[1746028121728,1.13154,1767.4,1767.3,7.0358]
[1746028121921,2.86304,1767.4,1767.3,7.0358]
[1746028122824,1.13154,1767.4,1767.3,7.0358]
[1746028125427,2.74104,1767.4,1767.3,7.0358]
[1746028126231,5.04153,1767.5,1767.3,7.0358]
[1746028126432,5.04153,1767.5,1767.3,8.16739]
[1746028126619,3.908,1767.4,1767.3,8.16736]
[1746028127032,1.6095,1767.7,1767.3,7.0358]
[1746028127230,5.03946,1767.6,1767.4,1.13153]
[1746028127533,1.13148,1767.5,1767.3,8.16736]
[1746028127732,1.13154,1767.4,1767.3,7.0358]
[1746028127927,1.13154,1767.4,1767.3,2.39032]
[1746028128130,1.13186,1766.9,1766.8,3.2078]
[1746028128335,1.13199,1766.7,1766.6,1.6851]
[1746028129733,1.13199,1766.7,1766.5,3.828]
[1746028129734,1.13206,1766.6,1766.5,3.828]
[1746028129921,5.04006,1766.6,1766.5,3.828]
[1746028130126,1.13225,1766.3,1766.2,3.2078]
[1746028130326,1.13225,1766.3,1766.2,4.833]
[1746028130529,1.13223,1766.4,1766.2,4.833]
[1746028130727,1.13221,1766.4,1766.2,5.96526]
[1746028131126,1.13221,1766.4,1766.2,9.79326]
[1746028131536,1.13225,1766.3,1766.2,8.661]
[1746028131736,1.13222,1766.4,1766.2,9.79328]
[1746028132136,8.43517,1766.6,1766.2,9.79328]
[1746028132433,1.13225,1766.4,1766.2,9.79328]
[1746028132637,1.13225,1766.4,1766.3,1.13225]
[1746028132842,1.13216,1766.5,1766.4,1.13218]
[1746028133130,3.908,1766.6,1766.4,8.16798]
[1746028133335,3.908,1766.6,1766.5,2.84562]
[1746028134134,3.2078,1767.1,1766.6,2.83015]
[1746028134332,3.908,1766.9,1766.8,4.33973]
[1746028134733,5.03986,1766.9,1766.8,4.33973]
[1746028135036,1.13193,1766.8,1766.7,0.853]
[1746028135237,1.13193,1766.8,1766.7,1.98499]
[1746028135437,3.908,1766.9,1766.8,1.13193]
[1746028135631,5.03986,1766.9,1766.8,4.33973]
[1746028135831,3.908,1766.9,1766.8,4.33973]
[1746028136339,3.908,1766.9,1766.8,8.16773]
[1746028136935,3.908,1766.9,1766.8,13.16773]
[1746028137541,1.13182,1767.0,1766.9,1.13186]
[1746028137840,1.13186,1766.9,1766.8,3.828]
[1746028138142,1.13199,1766.7,1766.6,3.2078]
[1746028138537,1.13199,1766.7,1766.4,1.13215]
[1746028138538,1.13212,1766.5,1766.4,3.2078]
[1746028138739,5.04012,1766.5,1766.4,3.2078]
[1746028139237,5.04012,1766.5,1766.4,7.0358]
[1746028140140,5.04012,1766.5,1766.4,8.16798]
[1746028140342,5.04012,1766.5,1766.4,7.0358]
[1746028140539,5.04012,1766.5,1766.4,8.16798]
[1746028141143,3.908,1766.5,1766.4,8.16798]
[1746028143942,1.6133,1766.9,1766.8,1.13193]
[1746028144141,3.908,1766.9,1766.8,4.95993]
[1746028144340,5.03986,1766.9,1766.8,3.828]
[1746028145244,3.908,1766.9,1766.8,8.16773]
[1746028145739,5.03986,1766.9,1766.8,7.0358]
[1746028148850,5.03986,1766.9,1766.8,8.16773]
[1746028149149,5.03986,1766.9,1766.8,7.0358]
[1746028150449,5.03986,1766.9,1766.8,8.6479]
[1746028150649,5.03986,1766.9,1766.8,9.77983]
[1746028150948,5.03986,1766.9,1766.8,8.6479]
[1746028151142,5.03986,1766.9,1766.8,7.0358]
[1746028154647,5.03986,1766.9,1766.8,3.828]
[1746028155152,6.79956,1766.9,1766.8,3.828]
[1746028157157,1.13199,1766.7,1766.6,4.8199]
[1746028157656,1.13199,1766.7,1766.4,3.828]
[1746028157657,1.13212,1766.5,1766.4,3.828]
[1746028157858,5.03612,1766.5,1766.4,5.4814]
[1746028158155,6.78702,1766.5,1766.4,5.4814]
[1746028158356,6.78702,1766.5,1766.4,3.828]
[1746028159051,6.78702,1766.5,1766.4,5.5673]
[1746028159953,6.78702,1766.5,1766.4,6.69948]
[1746028160159,5.03612,1766.5,1766.4,5.5673]
[1746028163259,5.03532,1766.5,1766.4,5.5673]
[1746028165358,3.904,1767.1,1766.4,16.4693]
[1746028165658,3.904,1767.1,1766.9,3.2078]
[1746028165861,3.904,1767.1,1767.0,3.5559]
[1746028166059,3.904,1767.1,1767.0,4.3974]
[1746028166261,3.904,1767.1,1767.0,8.2254]
[1746028166649,11.22421075,1767.3,1767.2,1.13167]
[1746028166953,15.12821075,1767.3,1767.2,4.33947]
[1746028167153,15.12821075,1767.3,1767.2,8.16747]
[1746028168059,3.904,1767.3,1767.2,8.16747]
[1746028168967,5.03561,1767.3,1767.2,8.16747]
[1746028169558,3.904,1767.3,1767.2,8.16747]
[1746028170465,5.03561,1767.3,1767.2,8.16747]
[1746028170664,14.05242075,1767.9,1767.3,2.82903]
[1746028170870,5.6663,1767.8,1767.4,6.83857]
[1746028171167,3.904,1767.8,1767.7,1.13135]
[1746028171659,3.904,1767.8,1767.7,2.73585]
[1746028171867,3.904,1767.8,1767.7,7.73585]
[1746028172162,11.22421075,1768.1,1768.0,1.13116]
[1746028172367,11.22421075,1768.1,1768.0,4.33896]
[1746028172572,11.22421075,1768.1,1768.0,9.33896]
[1746028172862,11.22421075,1768.1,1768.0,11.74346]
[1746028173160,11.22421075,1768.1,1768.0,15.57146]
[1746028173974,9.89441075,1768.1,1768.0,15.57146]
[1746028175267,9.89441075,1768.1,1768.0,10.57146]
[1746028175662,8.48612,1768.7,1768.3,1.13092]
[1746028175869,1.1309,1768.4,1768.3,4.33872]
[1746028176171,1.1309,1768.4,1768.3,8.16672]
[1746028176467,1.1309,1768.4,1768.3,7.0358]
[1746028176668,1.1309,1768.4,1768.3,8.16677]
[1746028176862,1.1309,1768.4,1768.3,4.95897]
[1746028178267,1.1309,1768.5,1768.4,1.1309]
[1746028178769,1.1309,1768.4,1768.3,8.16672]
[1746028179067,1.13089,1768.5,1768.4,1.1309]
[1746028179265,1.13089,1768.5,1768.4,3.828]
[1746028180568,2.87989,1768.5,1768.4,3.828]
[1746028182275,1.13097,1768.4,1768.2,1.131]
[1746028182476,5.02697,1768.4,1768.1,3.2078]
[1746028182774,1.13099,1768.3,1768.1,4.33885]
[1746028183271,1.13103,1768.2,1768.1,3.2078]
[1746028185570,1.13103,1768.2,1767.7,1.9554]
[1746028185571,1.13129,1767.8,1767.7,0.8241]
[1746028186168,1.13129,1767.8,1767.7,4.6521]
[1746028187072,1.13129,1767.8,1767.7,3.828]
[1746028187274,6.08619,1767.8,1767.7,3.828]
[1746028187475,11.08619,1767.8,1767.7,3.828]
[1746028187770,11.92949,1767.8,1767.7,3.828]
[1746028188168,1.13154,1767.4,1767.3,3.2078]
[1746028188370,5.02754,1767.4,1767.3,3.2078]
[1746028189177,5.02754,1767.4,1767.3,7.0358]
[1746028189576,5.02754,1767.4,1767.3,8.16741]
[1746028190170,3.896,1767.4,1767.3,8.16741]
[1746028190473,5.02754,1767.4,1767.3,8.7008]
[1746028190777,5.02754,1767.4,1767.3,9.83241]
[1746028190971,5.02754,1767.4,1767.3,8.7008]
[1746028191775,5.02754,1767.4,1767.3,9.83241]
[1746028191980,5.02754,1767.4,1767.3,5.493]
[1746028192476,5.02754,1767.4,1767.3,3.828]
[1746028192877,6.74204,1767.4,1767.3,3.828]
[1746028193380,9.93125,1768.3,1767.3,8.828]
[1746028193678,1.13118,1768.0,1767.8,1.13127]
[1746028193976,1.13118,1768.0,1767.9,1.6366]
[1746028194173,1.13118,1768.0,1767.9,5.4646]
[1746028194781,8.8183,1768.2,1767.9,5.4646]
[1746028194980,1.13114,1768.1,1767.9,6.5958]
[1746028195180,2.88064,1768.1,1767.9,2.7678]
[1746028196072,2.88064,1768.1,1767.9,6.5958]
[1746028196484,1.13116,1768.0,1767.9,6.59578]
[1746028197382,2.88065,1768.1,1767.9,6.59578]
[1746028197580,2.88065,1768.1,1767.9,5.4646]
[1746028197881,1.7495,1768.1,1767.9,6.59578]
[1746028198083,1.13116,1768.0,1767.9,6.59578]
[1746028198381,2.88064,1768.1,1767.9,5.4646]
[1746028198582,2.88064,1768.1,1767.9,6.59577]
[1746028198885,1.13116,1768.0,1767.9,6.59582]
[1746028199078,2.90076,1768.0,1767.9,6.59582]
[1746028199279,2.90076,1768.0,1767.9,2.76782]
[1746028199674,2.90076,1768.0,1767.9,1.6366]
[1746028200175,1.7696,1768.0,1767.9,6.59582]
[1746028200487,1.13115,1768.1,1767.9,6.59577]
[1746028200676,1.13116,1768.0,1767.9,6.59577]
[1746028201182,1.13116,1768.0,1767.9,2.76777]
[1746028202079,1.13116,1768.0,1767.9,6.59577]
[1746028202381,1.13116,1768.0,1767.9,5.4646]
[1746028203181,1.13116,1768.0,1767.9,1.6366]
[1746028203784,1.13116,1768.0,1767.9,2.76782]
[1746028204185,1.13116,1768.0,1767.9,1.6366]
[1746028204580,12.75912,1768.2,1767.9,1.6366]
[1746028204581,7.1038,1768.2,1768.1,1.1311]
[1746028204786,3.896,1768.2,1768.1,4.3389]
[1746028205485,3.896,1768.2,1768.1,1.1311]
[1746028205683,3.896,1768.2,1768.1,2.903]
[1746028205990,5.02703,1768.2,1768.1,2.903]
[1746028206588,5.02189,1768.5,1768.4,1.1309]
[1746028207183,5.02189,1768.5,1768.4,4.9589]
[1746028207483,5.02184,1768.5,1768.4,4.9589]
[1746028207687,1.13084,1768.5,1768.4,4.9589]
[1746028207887,3.891,1768.8,1768.4,6.65521]
[1746028208089,5.02168,1768.8,1768.7,1.13071]
[1746028208389,5.02168,1768.8,1768.6,1.13073]
[1746028208390,1.13071,1768.7,1768.6,1.13073]
[1746028208589,1.13071,1768.7,1768.6,3.62823]
[1746028208889,1.13071,1768.7,1768.6,2.4975]
[1746028209282,1.13071,1768.7,1768.6,3.62828]
[1746028209588,1.13071,1768.7,1768.6,3.3674]
[1746028209979,1.13071,1768.7,1768.6,4.49818]
[1746028210686,5.02169,1768.8,1768.6,4.49813]
[1746028210986,5.02169,1768.8,1768.7,1.754]
[1746028211184,5.02169,1768.8,1768.7,5.582]
[1746028212183,5.02169,1768.8,1768.7,6.71271]
[1746028212489,3.891,1768.8,1768.7,6.71271]
[1746028212981,5.02165,1768.8,1768.7,6.71271]
[1746028213181,5.02165,1768.8,1768.7,5.582]
[1746028214587,5.02165,1768.8,1768.7,6.71271]
[1746028214788,5.02165,1768.8,1768.7,5.582]
[1746028214989,5.02165,1768.8,1768.7,6.71271]
[1746028215188,5.02165,1768.8,1768.7,5.582]
[1746028216581,5.02165,1768.8,1768.7,6.71271]
[1746028216784,5.02165,1768.8,1768.7,5.582]
[1746028217190,5.02165,1768.8,1768.7,1.754]
[1746028217686,2.82679,1768.7,1768.2,5.902]
[1746028217883,1.13097,1768.3,1768.2,1.7061]
[1746028218084,5.01995,1768.4,1768.3,1.13097]
[1746028218285,3.889,1768.4,1768.0,6.0357]
[1746028218591,3.889,1768.4,1768.3,1.13097]
[1746028218785,3.889,1768.4,1768.1,2.82774]
[1746028218989,5.01996,1768.4,1768.1,2.82774]
[1746028219180,5.01996,1768.4,1768.3,1.13097]
[1746028219585,1.13097,1768.3,1768.2,2.01419]
[1746028219787,1.13097,1768.3,1768.2,2.01339]
[1746028220196,3.889,1768.4,1768.3,1.13097]
[1746028220488,5.0199,1768.4,1768.3,1.13097]
[1746028222187,1.13097,1768.3,1768.2,2.01339]
[1746028222486,1.1311,1768.1,1768.0,3.2078]
[1746028222691,1.13135,1767.7,1767.6,4.3392]
[1746028222891,1.13142,1767.6,1767.5,7.88731]
[1746028223287,1.13142,1767.6,1767.5,52.51531]
[1746028223493,4.33922,1767.6,1767.5,3.828]
[1746028224086,6.06982,1767.6,1767.5,3.828]
[1746028224286,1.13154,1767.4,1767.3,7.39828368]
[1746028224504,5.02154,1767.4,1767.3,7.39828368]
[1746028224892,6.75214,1767.4,1767.3,7.39828368]
[1746028225090,1.13161,1767.3,1767.2,9.1098]
[1746028225292,2.86221,1767.3,1767.2,3.2078]
[1746028225596,2.86221,1767.3,1767.1,1.13171]
[1746028225788,1.7306,1767.3,1767.2,1.13167]
[1746028226195,2.86222,1767.3,1767.1,1.13174]
[1746028226592,1.7306,1767.3,1767.0,4.0543]
[1746028226793,1.1318,1767.0,1766.9,40.8]
[1746028227291,8.41768,1767.1,1766.7,1.93858]
[1746028227494,1.13193,1766.8,1766.7,1.93858]
[1746028227695,2.83021,1766.9,1766.7,1.93858]
[1746028227885,1.6983,1766.9,1766.7,0.8066]
[1746028228086,3.89,1767.1,1766.8,1.13193]
[1746028228295,1.13182,1767.0,1766.8,1.13193]
[1746028228495,6.72004,1767.1,1766.9,1.13184]
[1746028229491,1.1318,1767.0,1766.8,4.95989]
[1746028229694,8.7961,1767.1,1766.8,3.828]
[1746028229891,1.13186,1766.9,1766.8,3.828]
[1746028230189,1.13198,1766.8,1766.5,1.1321]
[1746028230496,3.891,1766.7,1766.6,1.13206]
[1746028230698,3.891,1766.7,1766.6,2.75216]
[1746028231194,3.891,1766.7,1766.6,7.75216]
[1746028231900,1.13188,1766.9,1766.8,1.13193]
[1746028232101,1.13188,1766.9,1766.8,4.95993]
[1746028232286,5.02384,1767.0,1766.8,3.828]
[1746028232488,1.13186,1766.9,1766.8,4.95988]
[1746028233995,1.13186,1766.9,1766.8,3.828]
[1746028234501,2.81876,1766.9,1766.8,3.828]
[1746028235201,1.13193,1766.8,1766.7,4.0455]
[1746028235400,1.13193,1766.8,1766.7,5.17749]
[1746028235899,1.13193,1766.8,1766.7,3.2078]
[1746028236692,2.75173,1766.8,1766.7,4.33979]
[1746028237093,1.6198,1766.8,1766.7,4.33979]
[1746028237300,1.6198,1766.8,1766.7,1.13199]
[1746028237600,1.94621,1766.9,1766.8,1.13193]
[1746028237800,5.02385,1767.0,1766.9,1.13186]
[1746028238201,5.02385,1767.0,1766.9,3.828]
[1746028238799,6.62485,1767.0,1766.9,3.828]
[1746028239098,5.493,1767.0,1766.8,1.13188]
[1746028239300,5.493,1767.0,1766.9,1.13186]
[1746028239513,5.493,1767.0,1766.8,3.2078]
[1746028239514,3.886,1767.3,1767.2,1.13165]
[1746028240004,5.01761,1767.3,1767.2,1.13165]
[1746028240202,1.13168,1767.2,1767.1,1.13169]
[1746028240401,5.01766,1767.3,1767.2,1.13167]
[1746028241001,3.886,1767.3,1767.2,1.13167]
[1746028241198,4.33924,1767.6,1767.4,1.13149]
[1746028241505,1.13148,1767.5,1767.4,1.13149]
[1746028242300,1.13154,1767.4,1767.3,0.8516]
[1746028242602,1.13152,1767.5,1767.3,1.98321]
[1746028243606,1.13154,1767.4,1767.3,1.98321]
[1746028243805,1.13153,1767.5,1767.3,1.98321]
[1746028244007,6.71442,1767.7,1767.3,1.98321]
[1746028244306,1.13154,1767.4,1767.3,1.98321]
[1746028244900,6.71442,1767.7,1767.3,1.98321]
[1746028245209,1.13153,1767.5,1767.3,1.98321]
[1746028245607,1.13154,1767.4,1767.3,1.98321]
[1746028245907,1.13153,1767.5,1767.3,1.98321]
[1746028246102,1.13154,1767.4,1767.3,1.98321]
[1746028246306,8.43432,1767.7,1767.3,5.81121]
[1746028246603,8.43432,1767.7,1767.6,1.13142]
[1746028246604,3.886,1767.7,1767.6,1.13142]
[1746028246908,5.01735,1767.7,1767.5,1.13143]
[1746028247107,5.01735,1767.7,1767.5,4.95943]
[1746028248010,1.13142,1767.6,1767.5,3.828]
[1746028248310,2.83882,1767.6,1767.5,3.828]
[1746028249113,1.13148,1767.5,1767.4,1.13154]
[1746028249713,3.886,1767.7,1767.3,3.68056]
[1746028249913,5.01739,1767.7,1767.6,1.13142]
[1746028250513,3.886,1767.7,1767.6,1.13142]
[1746028250808,3.2078,1768.0,1767.6,9.33922]
[1746028251011,1.13124,1767.9,1767.7,3.7426]
[1746028251213,1.13126,1767.9,1767.8,1.13128]
[1746028251413,4.33901,1768.0,1767.9,1.13122]
[1746028253106,1.13122,1767.9,1767.8,1.13124]
[1746028253305,5.65668,1767.8,1766.9,6.03735]
[1746028253508,1.13167,1767.2,1767.1,0.8752]
[1746028253814,1.13164,1767.3,1767.2,1.13167]
[1746028254207,1.13164,1767.3,1767.2,4.95967]
[1746028254913,5.0176,1767.4,1767.3,1.13161]
[1746028256416,1.13163,1767.3,1767.2,1.13161]
[1746028256611,1.13163,1767.3,1767.1,44.883]
[1746028256815,1.13167,1767.2,1767.1,41.9317]
[1746028257318,1.13167,1767.2,1767.1,40.8]
[1746028257509,1.13193,1766.8,1766.7,9.9363]
[1746028257717,1.13193,1766.8,1766.7,3.2078]
[1746028258017,1.13193,1766.8,1766.7,40.8]
[1746028258518,1.98803,1766.8,1766.7,40.8]
[1746028259014,0.8561,1766.8,1766.5,1.1321]
[1746028259219,6.67133,1766.7,1766.5,1.1321]
[1746028259419,6.67133,1766.7,1766.5,41.9321]
[1746028259818,5.5393,1766.7,1766.4,3.2078]
[1746028260018,1.13225,1766.3,1766.2,3.2078]
[1746028260519,3.886,1766.4,1766.2,4.34011]
[1746028260722,1.13225,1766.3,1766.2,3.2078]
[1746028261113,1.13225,1766.3,1766.2,8.16811]
[1746028261314,5.01823,1766.4,1766.2,8.16811]
[1746028261515,1.13225,1766.3,1766.2,8.16811]
[1746028262030,1.13225,1766.3,1766.2,7.0358]
[1746028262331,1.13225,1766.3,1766.2,8.16811]
[1746028262532,1.13225,1766.3,1766.2,7.0358]
[1746028263428,2.79855,1766.3,1766.2,7.0358]
[1746028264228,2.79855,1766.3,1766.2,3.2078]
[1746028265226,1.13251,1765.9,1765.8,0.8406]
[1746028265426,1.13262,1765.8,1765.5,3.2078]
[1746028265625,1.13262,1765.8,1765.7,1.13263]
[1746028266329,5.6131,1766.0,1765.8,1.13254]
[1746028266526,3.881,1766.0,1765.8,1.13253]
[1746028266725,5.01351,1766.0,1765.8,1.13253]
[1746028266938,3.881,1766.0,1765.8,1.13253]
[1746028267231,3.881,1766.0,1765.9,1.13251]
[1746028267434,5.01347,1766.0,1765.9,0.8216]
[1746028267728,5.01347,1766.0,1765.9,1.95411]
[1746028267926,3.881,1766.0,1765.9,1.95411]
[1746028268127,3.881,1766.0,1765.9,5.78211]
[1746028268426,0.8258,1766.2,1765.9,10.4858]
[1746028268634,3.881,1766.3,1766.2,1.13231]
[1746028268826,3.881,1766.3,1766.2,4.34011]
[1746028269030,3.881,1766.3,1765.9,13.774]
[1746028269227,5.01325,1766.3,1766.2,3.828]
[1746028269626,10.01325,1766.3,1766.2,3.828]
[1746028270238,1.13253,1765.9,1765.8,1.13255]
[1746028270436,3.881,1765.9,1765.8,2.89615]
[1746028271239,3.881,1765.9,1765.8,6.72415]
[1746028272831,5.01351,1765.9,1765.8,6.72415]
[1746028273441,3.881,1765.9,1765.8,6.72415]
[1746028274132,5.01351,1765.9,1765.8,6.72415]
[1746028274839,3.881,1765.9,1765.8,6.72415]
[1746028275340,5.01351,1765.9,1765.8,6.72415]
[1746028275944,3.881,1765.9,1765.8,6.72415]
[1746028276136,5.01351,1765.9,1765.8,6.72415]
[1746028276339,5.01351,1765.9,1765.8,5.5916]
[1746028276635,5.01351,1765.9,1765.8,4.96057]
[1746028277331,5.01351,1765.9,1765.8,6.60517]
[1746028277532,5.01351,1765.9,1765.8,5.4726]
[1746028278141,5.01351,1765.9,1765.8,3.828]
[1746028278536,5.84761,1765.9,1765.8,3.828]
[1746028280039,14.05541,1765.9,1765.8,3.828]
[1746028280434,15.70871,1765.9,1765.8,3.828]
[1746028281140,1.13263,1765.7,1765.5,1.13272]
[1746028281340,5.0147,1765.6,1765.5,1.13272]
[1746028281538,3.882,1765.6,1765.5,1.13272]
[1746028281936,5.5353,1765.6,1765.5,1.13272]
[1746028282146,3.882,1765.6,1765.5,4.96072]
[1746028284045,5.0147,1765.6,1765.5,3.828]
[1746028284344,6.6793,1765.6,1765.5,3.828]
[1746028284542,6.6793,1765.6,1765.5,5.4484]
[1746028285645,6.6793,1765.6,1765.5,3.828]
[1746028286446,6.6793,1765.6,1765.5,4.96076]
[1746028286646,6.6793,1765.6,1765.5,6.65636]
[1746028287647,5.0147,1765.6,1765.5,6.65636]
[1746028288246,5.0147,1765.6,1765.5,5.5236]
[1746028288448,6.7509,1765.6,1765.5,6.65636]
[1746028289446,5.0147,1765.6,1765.5,5.5236]
[1746028289647,5.0147,1765.6,1765.5,6.65636]
[1746028290144,6.7825,1765.6,1765.5,6.65636]
[1746028290748,3.882,1765.6,1765.5,6.65636]
[1746028291044,6.94226,1765.9,1765.8,1.13257]
[1746028291240,10.82526,1765.9,1765.8,4.96057]
[1746028291635,10.82526,1765.9,1765.8,3.828]
[1746028291841,10.82526,1765.9,1765.8,6.63807]
[1746028293853,10.82526,1765.9,1765.8,5.5055]
[1746028294352,15.82526,1765.9,1765.8,3.828]
[1746028295146,1.13276,1765.5,1765.4,2.75222]
[1746028295347,3.877,1765.5,1765.4,2.75223]